[Event "Early-Titled-Tuesday-Blitz-March-26-2024"]
[Site "Chess.com"]
[Date "2024.03.26"]
[Round "5"]
[White "DinaBelenkaya"]
[Black "profedechess93"]
[Result "0-1"]
[WhiteElo "2479"]
[BlackElo "2653"]
[TimeControl "180+1"]
[EndTime "8:55:36 PDT"]
[Termination "profedechess93 won on time"]

1. Nf3 {[%clk 0:03:00.9]} 1... d5 {[%clk 0:02:59.8]} 2. g3 {[%clk 0:02:55.5]}
2... Nf6 {[%clk 0:02:59.8]} 3. Bg2 {[%clk 0:02:54.8]} 3... c6 {[%clk 0:03:00.5]}
4. d3 {[%clk 0:02:53]} 4... g6 {[%clk 0:03:00.9]} 5. Nbd2 {[%clk 0:02:52.4]}
5... Bg7 {[%clk 0:03:01.6]} 6. O-O {[%clk 0:02:51.3]} 6... O-O {[%clk
0:03:02.2]} 7. e4 {[%clk 0:02:48.2]} 7... a5 {[%clk 0:03:02.1]} 8. e5 {[%clk
0:02:44]} 8... Ne8 {[%clk 0:03:01.8]} 9. Qe2 {[%clk 0:02:38]} 9... c5 {[%clk
0:03:00.5]} 10. c3 {[%clk 0:02:38.1]} 10... Nc6 {[%clk 0:03:00.3]} 11. d4 {[%clk
0:02:38.2]} 11... cxd4 {[%clk 0:02:55.1]} 12. cxd4 {[%clk 0:02:37.5]} 12... Qb6
{[%clk 0:02:55.5]} 13. Nb3 {[%clk 0:02:28.4]} 13... a4 {[%clk 0:02:50.9]} 14.
Nc5 {[%clk 0:02:28.4]} 14... Nxd4 {[%clk 0:02:47]} 15. Nxd4 {[%clk 0:02:29.3]}
15... Qxc5 {[%clk 0:02:47.2]} 16. Be3 {[%clk 0:02:30.1]} 16... Qa5 {[%clk
0:02:42]} 17. Bd2 {[%clk 0:02:16.1]} 17... Qd8 {[%clk 0:02:36.7]} 18. Bb4 {[%clk
0:02:12.6]} 18... Nc7 {[%clk 0:02:34.2]} 19. f4 {[%clk 0:02:09.7]} 19... Ne6
{[%clk 0:02:32.5]} 20. Qf2 {[%clk 0:01:59.8]} 20... Re8 {[%clk 0:01:59.7]} 21.
Rfd1 {[%clk 0:01:57.3]} 21... Nxd4 {[%clk 0:01:53.3]} 22. Qxd4 {[%clk
0:01:56.2]} 22... e6 {[%clk 0:01:54]} 23. Rac1 {[%clk 0:01:51.9]} 23... Bd7
{[%clk 0:01:54]} 24. Bd6 {[%clk 0:01:50.8]} 24... Bc6 {[%clk 0:01:54.4]} 25. a3
{[%clk 0:01:30.1]} 25... Qxd6 {[%clk 0:01:52.2]} 26. exd6 {[%clk 0:01:27.5]}
26... Bxd4+ {[%clk 0:01:52.6]} 27. Rxd4 {[%clk 0:01:28.4]} 27... Red8 {[%clk
0:01:53.2]} 28. Bf3 {[%clk 0:01:21.5]} 28... Rxd6 {[%clk 0:01:52.7]} 29. Bd1
{[%clk 0:01:21.8]} 29... Ra6 {[%clk 0:01:50.9]} 30. Rb4 {[%clk 0:01:12.9]} 30...
f6 {[%clk 0:01:47.2]} 31. Kf2 {[%clk 0:01:09]} 31... e5 {[%clk 0:01:47.1]} 32.
fxe5 {[%clk 0:01:09.4]} 32... fxe5 {[%clk 0:01:47.6]} 33. Be2 {[%clk 0:00:59.4]}
33... Rf6+ {[%clk 0:01:38.7]} 34. Ke1 {[%clk 0:00:58.7]} 34... Ra5 {[%clk
0:01:37.1]} 35. Rb6 {[%clk 0:00:40.7]} 35... Kg7 {[%clk 0:01:32.6]} 36. Rc2
{[%clk 0:00:29.2]} 36... d4 {[%clk 0:01:32]} 37. Rc4 {[%clk 0:00:25.9]} 37... h5
{[%clk 0:01:19.3]} 38. h4 {[%clk 0:00:25.7]} 38... Rd5 {[%clk 0:01:07.8]} 39.
Bd1 {[%clk 0:00:24.3]} 39... e4 {[%clk 0:00:58.5]} 40. Bxa4 {[%clk 0:00:22]}
40... Rdf5 {[%clk 0:00:58.8]} 41. Rxd4 {[%clk 0:00:16.4]} 41... Rf1+ {[%clk
0:00:56.7]} 42. Ke2 {[%clk 0:00:13.9]} 42... R6f2+ {[%clk 0:00:43.8]} 43. Ke3
{[%clk 0:00:14.2]} 43... Rf3+ {[%clk 0:00:42.8]} 44. Kd2 {[%clk 0:00:14.6]}
44... R1f2+ {[%clk 0:00:38.1]} 45. Kc1 {[%clk 0:00:15]} 45... Rf1+ {[%clk
0:00:35.7]} 46. Bd1 {[%clk 0:00:14.5]} 46... e3 {[%clk 0:00:32.4]} 47. Kc2
{[%clk 0:00:08.2]} 47... R3f2+ {[%clk 0:00:25.6]} 48. Kc3 {[%clk 0:00:06.4]}
48... e2 {[%clk 0:00:24.6]} 49. Bxe2 {[%clk 0:00:06.7]} 49... Rxe2 {[%clk
0:00:25.5]} 50. Rbb4 {[%clk 0:00:03.1]} 50... Rf3+ {[%clk 0:00:24.5]} 51. Kc4
{[%clk 0:00:03.6]} 51... Rxg3 {[%clk 0:00:24.1]} 52. Kc5 {[%clk 0:00:04.1]}
52... Rc2+ {[%clk 0:00:22.1]} 53. Kb6 {[%clk 0:00:03.9]} 53... Rgg2 {[%clk
0:00:20.9]} 54. b3 {[%clk 0:00:03.4]} 54... Rg3 {[%clk 0:00:19.6]} 55. a4 {[%clk
0:00:03.6]} 55... Rcc3 {[%clk 0:00:19.8]} 56. a5 {[%clk 0:00:03.2]} 56... Rxb3
{[%clk 0:00:19.9]} 57. a6 {[%clk 0:00:03.8]} 57... Rxb4+ {[%clk 0:00:13.6]} 58.
Rxb4 {[%clk 0:00:04.7]} 58... bxa6 {[%clk 0:00:12.2]} 59. Kxc6 {[%clk
0:00:04.2]} 59... Rg4 {[%clk 0:00:12.8]} 60. Rb7+ {[%clk 0:00:02.1]} 60... Kh6
{[%clk 0:00:12.9]} 61. Ra7 {[%clk 0:00:03]} 61... Rxh4 {[%clk 0:00:12.6]} 62.
Kd5 {[%clk 0:00:03.6]} 62... Ra4 {[%clk 0:00:12]} 63. Ke5 {[%clk 0:00:03.6]}
63... Kg5 {[%clk 0:00:12.1]} 64. Ra8 {[%clk 0:00:03.6]} 64... h4 {[%clk
0:00:12.2]} 65. Rh8 {[%clk 0:00:03.8]} 65... Kg4 {[%clk 0:00:11]} 66. Rg8 {[%clk
0:00:03.7]} 66... g5 {[%clk 0:00:11.3]} 67. Rh8 {[%clk 0:00:04.2]} 67... h3
{[%clk 0:00:10.7]} 68. Rb8 {[%clk 0:00:04]} 68... h2 {[%clk 0:00:10.2]} 69. Rb1
{[%clk 0:00:03.9]} 69... Kh3 {[%clk 0:00:10.4]} 70. Rb3+ {[%clk 0:00:03.8]}
70... Kh4 {[%clk 0:00:09.7]} 71. Rb1 {[%clk 0:00:03.8]} 71... g4 {[%clk
0:00:09.5]} 72. Kf5 {[%clk 0:00:04.3]} 72... g3 {[%clk 0:00:09.8]} 73. Rb8
{[%clk 0:00:02.7]} 73... Kh3 {[%clk 0:00:10.1]} 74. Rh8+ {[%clk 0:00:02.8]}
74... Kg2 {[%clk 0:00:10.4]} 0-1

[Event "Early-Titled-Tuesday-Blitz-March-26-2024"]
[Site "Chess.com"]
[Date "2024.03.26"]
[Round "5"]
[White "Agibileg"]
[Black "Durarbayli"]
[Result "0-1"]
[WhiteElo "2760"]
[BlackElo "2932"]
[TimeControl "180+1"]
[EndTime "8:55:38 PDT"]
[Termination "Durarbayli won on time"]

1. d4 {[%clk 0:03:00.9]} 1... Nf6 {[%clk 0:02:59.6]} 2. c4 {[%clk 0:03:00.2]}
2... e6 {[%clk 0:02:59.9]} 3. Nc3 {[%clk 0:02:59.9]} 3... Bb4 {[%clk 0:03:00.3]}
4. e3 {[%clk 0:02:59.9]} 4... O-O {[%clk 0:03:00.3]} 5. Bd3 {[%clk 0:02:58.8]}
5... c5 {[%clk 0:02:59.9]} 6. Ne2 {[%clk 0:02:56.5]} 6... d5 {[%clk 0:02:59.9]}
7. cxd5 {[%clk 0:02:55.7]} 7... cxd4 {[%clk 0:03:00.5]} 8. exd4 {[%clk
0:02:54.7]} 8... Nxd5 {[%clk 0:03:01]} 9. O-O {[%clk 0:02:54.3]} 9... Nc6 {[%clk
0:03:01.6]} 10. Nxd5 {[%clk 0:02:52.1]} 10... exd5 {[%clk 0:02:59.2]} 11. a3
{[%clk 0:02:50.7]} 11... Be7 {[%clk 0:02:51.6]} 12. Re1 {[%clk 0:02:50.6]} 12...
Bf6 {[%clk 0:02:51.6]} 13. Bf4 {[%clk 0:02:43]} 13... Bg4 {[%clk 0:02:43.5]} 14.
f3 {[%clk 0:02:30.2]} 14... Bh5 {[%clk 0:02:43.4]} 15. Kh1 {[%clk 0:02:18.4]}
15... Re8 {[%clk 0:02:28]} 16. Qd2 {[%clk 0:02:01]} 16... Qb6 {[%clk 0:02:20.8]}
17. Be3 {[%clk 0:01:55.9]} 17... Bg6 {[%clk 0:02:11.6]} 18. Bxg6 {[%clk
0:01:50.1]} 18... hxg6 {[%clk 0:02:11.3]} 19. Rad1 {[%clk 0:01:50.4]} 19... Na5
{[%clk 0:02:05.1]} 20. Nc3 {[%clk 0:01:37.8]} 20... Nc4 {[%clk 0:02:04.3]} 21.
Nxd5 {[%clk 0:01:29.3]} 21... Qe6 {[%clk 0:01:30.7]} 22. Nxf6+ {[%clk
0:01:29.2]} 22... gxf6 {[%clk 0:01:27.6]} 23. d5 {[%clk 0:01:25.1]} 23... Qe5
{[%clk 0:01:07.5]} 24. Bf4 {[%clk 0:01:16.1]} 24... Nxd2 {[%clk 0:00:52.4]} 25.
Bxe5 {[%clk 0:01:15.4]} 25... Nxf3 {[%clk 0:00:52.9]} 26. gxf3 {[%clk
0:01:14.9]} 26... fxe5 {[%clk 0:00:45.9]} 27. d6 {[%clk 0:01:02.2]} 27... Rad8
{[%clk 0:00:46.4]} 28. Rd5 {[%clk 0:01:00.4]} 28... f6 {[%clk 0:00:45.6]} 29.
Rc1 {[%clk 0:01:00.7]} 29... Rd7 {[%clk 0:00:36.5]} 30. Rc7 {[%clk 0:00:46.1]}
30... Red8 {[%clk 0:00:36.5]} 31. Rdc5 {[%clk 0:00:46.2]} 31... Kf7 {[%clk
0:00:32]} 32. Ra5 {[%clk 0:00:28.3]} 32... a6 {[%clk 0:00:26.2]} 33. Ra4 {[%clk
0:00:26.8]} 33... Ke6 {[%clk 0:00:19.7]} 34. Rb4 {[%clk 0:00:26.6]} 34... b5
{[%clk 0:00:12.5]} 35. a4 {[%clk 0:00:26.4]} 35... bxa4 {[%clk 0:00:12.4]} 36.
Rxa4 {[%clk 0:00:26]} 36... Rb8 {[%clk 0:00:10.7]} 37. Rxd7 {[%clk 0:00:18.8]}
37... Kxd7 {[%clk 0:00:11.6]} 38. Rxa6 {[%clk 0:00:18.6]} 38... Rxb2 {[%clk
0:00:12.1]} 39. Kg1 {[%clk 0:00:18.5]} 39... Rd2 {[%clk 0:00:12.4]} 40. h3
{[%clk 0:00:07.9]} 40... Rxd6 {[%clk 0:00:10.3]} 41. Ra7+ {[%clk 0:00:08.1]}
41... Ke6 {[%clk 0:00:10.5]} 42. Kg2 {[%clk 0:00:08.8]} 42... f5 {[%clk
0:00:08.7]} 43. Kg3 {[%clk 0:00:08.9]} 43... f4+ {[%clk 0:00:08.5]} 44. Kg4
{[%clk 0:00:07.9]} 44... Kf6 {[%clk 0:00:08.7]} 45. Rb7 {[%clk 0:00:07.5]} 45...
Rd2 {[%clk 0:00:07.7]} 46. Rb6+ {[%clk 0:00:07.7]} 46... Kg7 {[%clk 0:00:08.4]}
47. Re6 {[%clk 0:00:07.5]} 47... Rg2+ {[%clk 0:00:08.8]} 48. Kh4 {[%clk
0:00:07.6]} 48... Rg3 {[%clk 0:00:03.3]} 49. Rxe5 {[%clk 0:00:06.6]} 49... Kh6
{[%clk 0:00:03.8]} 50. Rh5+ {[%clk 0:00:03.7]} 50... Kg7 {[%clk 0:00:02.3]} 51.
Ra5 {[%clk 0:00:03.3]} 51... Kh6 {[%clk 0:00:01.9]} 52. Rh5+ {[%clk 0:00:02.5]}
52... Kg7 {[%clk 0:00:02.5]} 53. Ra5 {[%clk 0:00:03.4]} 53... Kf6 {[%clk
0:00:02.6]} 54. Ra6+ {[%clk 0:00:03]} 54... Ke5 {[%clk 0:00:02.8]} 55. Ra3
{[%clk 0:00:01.8]} 55... Kd4 {[%clk 0:00:02.6]} 56. Rb3 {[%clk 0:00:02.1]} 56...
Kc4 {[%clk 0:00:03.1]} 57. Ra3 {[%clk 0:00:02.1]} 57... Kd4 {[%clk 0:00:03.7]}
58. Rb3 {[%clk 0:00:02]} 58... Rg2 {[%clk 0:00:02.9]} 59. Ra3 {[%clk 0:00:02.5]}
59... g5+ {[%clk 0:00:03]} 60. Kh5 {[%clk 0:00:01.7]} 60... Rg3 {[%clk
0:00:03.4]} 61. Rb3 {[%clk 0:00:01.3]} 61... Kc4 {[%clk 0:00:03.7]} 62. Ra3
{[%clk 0:00:01]} 62... Kd4 {[%clk 0:00:04.3]} 63. Rb3 {[%clk 0:00:00.8]} 63...
Ke5 {[%clk 0:00:04.8]} 0-1

[Event "Early-Titled-Tuesday-Blitz-March-26-2024"]
[Site "Chess.com"]
[Date "2024.03.26"]
[Round "5"]
[White "ATM622"]
[Black "N_I_Chess"]
[Result "1-0"]
[WhiteElo "2496"]
[BlackElo "2319"]
[TimeControl "180+1"]
[EndTime "8:55:47 PDT"]
[Termination "ATM622 won by resignation"]

1. d4 {[%clk 0:03:00.9]} 1... Nf6 {[%clk 0:02:34.5]} 2. c4 {[%clk 0:02:58.1]}
2... e6 {[%clk 0:02:34.6]} 3. g3 {[%clk 0:02:58.3]} 3... d5 {[%clk 0:02:31]} 4.
Bg2 {[%clk 0:02:58.4]} 4... dxc4 {[%clk 0:02:30.9]} 5. Nf3 {[%clk 0:02:58.2]}
5... Nc6 {[%clk 0:02:31.3]} 6. Qa4 {[%clk 0:02:56.2]} 6... Bb4+ {[%clk
0:02:30.8]} 7. Bd2 {[%clk 0:02:55.1]} 7... Bd6 {[%clk 0:02:30.6]} 8. Qxc4 {[%clk
0:02:52.3]} 8... O-O {[%clk 0:02:29.4]} 9. O-O {[%clk 0:02:52.4]} 9... e5 {[%clk
0:02:29.8]} 10. dxe5 {[%clk 0:02:46]} 10... Nxe5 {[%clk 0:02:30.7]} 11. Nxe5
{[%clk 0:02:46.3]} 11... Bxe5 {[%clk 0:02:31.6]} 12. Bc3 {[%clk 0:02:45.7]}
12... Qe7 {[%clk 0:02:26.5]} 13. Bxe5 {[%clk 0:02:19.9]} 13... Qxe5 {[%clk
0:02:27.4]} 14. Nc3 {[%clk 0:02:20]} 14... c6 {[%clk 0:02:27.1]} 15. Rad1 {[%clk
0:02:16.9]} 15... Be6 {[%clk 0:02:27.3]} 16. Qd4 {[%clk 0:02:16.9]} 16... Qa5
{[%clk 0:02:24.1]} 17. b4 {[%clk 0:02:11.4]} 17... Qb6 {[%clk 0:02:23.5]} 18. b5
{[%clk 0:02:08.3]} 18... cxb5 {[%clk 0:02:16.6]} 19. Qxb6 {[%clk 0:01:51.6]}
19... axb6 {[%clk 0:02:17.5]} 20. Nxb5 {[%clk 0:01:51.3]} 20... Rxa2 {[%clk
0:02:13.4]} 21. Rfe1 {[%clk 0:01:44.7]} 21... Bc4 {[%clk 0:02:09.8]} 22. Nd6
{[%clk 0:01:41.3]} 22... Bxe2 {[%clk 0:02:06.9]} 23. Rb1 {[%clk 0:01:40.8]}
23... Ba6 {[%clk 0:02:03.4]} 24. Rxb6 {[%clk 0:01:38.9]} 24... h6 {[%clk
0:01:16.3]} 25. Bxb7 {[%clk 0:01:34.3]} 25... Nd7 {[%clk 0:01:10.5]} 26. Rxa6
{[%clk 0:01:32.9]} 26... Rd2 {[%clk 0:01:01.2]} 27. Ne4 {[%clk 0:01:25.5]} 27...
Rd4 {[%clk 0:01:01.1]} 28. Rd6 {[%clk 0:01:22.6]} 28... Rxd6 {[%clk 0:00:59.4]}
29. Nxd6 {[%clk 0:01:23.5]} 29... Nc5 {[%clk 0:00:56.1]} 30. Bd5 {[%clk
0:01:21.8]} 30... Rd8 {[%clk 0:00:53.6]} 31. Re8+ {[%clk 0:01:15.6]} 31... Rxe8
{[%clk 0:00:53.1]} 32. Nxe8 {[%clk 0:01:16.5]} 32... Kf8 {[%clk 0:00:53.6]} 33.
Nd6 {[%clk 0:01:15.8]} 33... f6 {[%clk 0:00:54.1]} 34. f4 {[%clk 0:01:13.1]}
34... Ke7 {[%clk 0:00:54]} 35. Nf5+ {[%clk 0:01:12.7]} 35... Kf8 {[%clk
0:00:53.9]} 36. Kf1 {[%clk 0:01:11.9]} 36... g6 {[%clk 0:00:53.6]} 37. Nxh6
{[%clk 0:01:11.6]} 37... Na4 {[%clk 0:00:50.5]} 38. Kf2 {[%clk 0:01:09.4]} 38...
Nb6 {[%clk 0:00:49.4]} 39. Bb3 {[%clk 0:01:08.4]} 39... Nd7 {[%clk 0:00:48.1]}
40. f5 {[%clk 0:01:06.8]} 40... g5 {[%clk 0:00:47.2]} 41. Ke3 {[%clk 0:01:04.4]}
41... Ne5 {[%clk 0:00:46.5]} 42. Bd1 {[%clk 0:01:02.7]} 42... Kg7 {[%clk
0:00:46.1]} 43. Ng4 {[%clk 0:01:02.3]} 43... Nf7 {[%clk 0:00:47]} 44. Kd4 {[%clk
0:01:02]} 44... Nd6 {[%clk 0:00:46.5]} 45. Ne3 {[%clk 0:00:59.5]} 45... Nf7
{[%clk 0:00:45.8]} 46. Kd5 {[%clk 0:00:59.1]} 46... Ne5 {[%clk 0:00:45.9]} 47.
Be2 {[%clk 0:00:58.5]} 47... Nd7 {[%clk 0:00:44.6]} 48. Kd6 {[%clk 0:00:58.1]}
48... Ne5 {[%clk 0:00:42.1]} 49. Ke6 {[%clk 0:00:58.1]} 49... Nc6 {[%clk
0:00:41.4]} 50. Bd1 {[%clk 0:00:55.2]} 50... Nd4+ {[%clk 0:00:41.2]} 51. Kd7
{[%clk 0:00:55.4]} 51... Kf7 {[%clk 0:00:39]} 52. Kd6 {[%clk 0:00:51.9]} 52...
Nb5+ {[%clk 0:00:38.3]} 53. Kc5 {[%clk 0:00:49.5]} 53... Nc3 {[%clk 0:00:37.9]}
54. Bb3+ {[%clk 0:00:44.3]} 54... Kg7 {[%clk 0:00:38.5]} 55. Bc4 {[%clk
0:00:44.2]} 55... Ne4+ {[%clk 0:00:37.8]} 56. Kd5 {[%clk 0:00:40.8]} 56... Nd2
{[%clk 0:00:37.9]} 57. Be2 {[%clk 0:00:36.4]} 57... Nb3 {[%clk 0:00:38.6]} 58.
h4 {[%clk 0:00:27.8]} 58... gxh4 {[%clk 0:00:39.5]} 59. gxh4 {[%clk 0:00:27.9]}
59... Na5 {[%clk 0:00:39.1]} 60. Bc4 {[%clk 0:00:23.2]} 60... Nb7 {[%clk
0:00:38.1]} 61. Ng4 {[%clk 0:00:17.3]} 61... Nd8 {[%clk 0:00:36.9]} 62. h5
{[%clk 0:00:15.8]} 62... Nf7 {[%clk 0:00:35.6]} 63. Ke6 {[%clk 0:00:14.7]} 63...
Ng5+ {[%clk 0:00:35.6]} 64. Ke7 {[%clk 0:00:15]} 64... Ne4 {[%clk 0:00:34.2]}
65. Bf7 {[%clk 0:00:12.8]} 65... Ng3 {[%clk 0:00:28.3]} 66. h6+ {[%clk
0:00:09.8]} 66... Kh7 {[%clk 0:00:28.8]} 67. Bg6+ {[%clk 0:00:09.9]} 67... Kh8
{[%clk 0:00:29.4]} 68. Kxf6 {[%clk 0:00:09.1]} 68... Ne4+ {[%clk 0:00:29.3]} 69.
Ke7 {[%clk 0:00:09]} 69... Ng5 {[%clk 0:00:29.9]} 70. Ne5 {[%clk 0:00:09]} 70...
Kg8 {[%clk 0:00:29.8]} 71. Nf7 {[%clk 0:00:07.1]} 71... Nxf7 {[%clk 0:00:25]}
72. Bxf7+ {[%clk 0:00:06.8]} 72... Kh7 {[%clk 0:00:25.9]} 73. Be6 {[%clk
0:00:06.3]} 73... Kxh6 {[%clk 0:00:26.8]} 74. f6 {[%clk 0:00:06.6]} 74... Kg5
{[%clk 0:00:27.7]} 75. f7 {[%clk 0:00:06.8]} 75... Kf4 {[%clk 0:00:28.6]} 76.
f8=Q+ {[%clk 0:00:07]} 76... Ke5 {[%clk 0:00:29.5]} 77. Qf5+ {[%clk 0:00:07]}
77... Kd4 {[%clk 0:00:29.9]} 78. Qd5+ {[%clk 0:00:07.1]} 1-0

[Event "Early-Titled-Tuesday-Blitz-March-26-2024"]
[Site "Chess.com"]
[Date "2024.03.26"]
[Round "5"]
[White "Philippians46"]
[Black "monomita"]
[Result "0-1"]
[WhiteElo "2997"]
[BlackElo "2765"]
[TimeControl "180+1"]
[EndTime "8:55:48 PDT"]
[Termination "monomita won by resignation"]

1. d4 {[%clk 0:03:00.9]} 1... Nf6 {[%clk 0:02:59.9]} 2. c4 {[%clk 0:03:00.9]}
2... e6 {[%clk 0:03:00.5]} 3. g3 {[%clk 0:03:01.3]} 3... d5 {[%clk 0:03:00.6]}
4. Bg2 {[%clk 0:03:01.7]} 4... dxc4 {[%clk 0:02:59.8]} 5. Nf3 {[%clk 0:03:02.2]}
5... a6 {[%clk 0:03:00.4]} 6. Ne5 {[%clk 0:03:01.8]} 6... c5 {[%clk 0:02:55.4]}
7. Be3 {[%clk 0:02:54.6]} 7... cxd4 {[%clk 0:02:50.9]} 8. Bxd4 {[%clk
0:02:55.5]} 8... Bb4+ {[%clk 0:02:50.6]} 9. Nc3 {[%clk 0:02:55.9]} 9... O-O
{[%clk 0:02:50.2]} 10. O-O {[%clk 0:02:54.8]} 10... Qc7 {[%clk 0:02:44.6]} 11.
Rc1 {[%clk 0:02:20.5]} 11... Nbd7 {[%clk 0:01:45.9]} 12. Nxd7 {[%clk 0:01:25.1]}
12... Bxd7 {[%clk 0:01:43.1]} 13. Bxf6 {[%clk 0:01:24.2]} 13... gxf6 {[%clk
0:01:43.5]} 14. Ne4 {[%clk 0:01:24.4]} 14... Be7 {[%clk 0:01:37.2]} 15. b3
{[%clk 0:01:23.8]} 15... f5 {[%clk 0:01:12.8]} 16. Rxc4 {[%clk 0:01:09.4]} 16...
Bc6 {[%clk 0:01:12.3]} 17. Nd2 {[%clk 0:01:09.1]} 17... Rad8 {[%clk 0:01:05.3]}
18. Bxc6 {[%clk 0:01:08.9]} 18... bxc6 {[%clk 0:01:06.2]} 19. Qc2 {[%clk
0:01:09.4]} 19... c5 {[%clk 0:01:03.3]} 20. b4 {[%clk 0:01:01.6]} 20... Qd7
{[%clk 0:00:53.3]} 21. Nf3 {[%clk 0:01:01.7]} 21... cxb4 {[%clk 0:00:53.6]} 22.
e4 {[%clk 0:01:01.3]} 22... Qd3 {[%clk 0:00:45.8]} 23. Qxd3 {[%clk 0:00:51.7]}
23... Rxd3 {[%clk 0:00:46.7]} 24. Ne5 {[%clk 0:00:52.6]} 24... Rc3 {[%clk
0:00:46.5]} 25. exf5 {[%clk 0:00:32.2]} 25... Rxc4 {[%clk 0:00:42]} 26. Nxc4
{[%clk 0:00:31.9]} 26... Rc8 {[%clk 0:00:31]} 27. Ne3 {[%clk 0:00:31.9]} 27...
Rc3 {[%clk 0:00:28.1]} 28. Rd1 {[%clk 0:00:29.1]} 28... Kf8 {[%clk 0:00:19.1]}
29. Rd7 {[%clk 0:00:22.4]} 29... Ra3 {[%clk 0:00:16.6]} 30. Rd2 {[%clk
0:00:11.7]} 30... Bg5 {[%clk 0:00:13.4]} 31. fxe6 {[%clk 0:00:11.4]} 31... fxe6
{[%clk 0:00:11.6]} 32. f4 {[%clk 0:00:11.6]} 32... Rxe3 {[%clk 0:00:11.2]} 33.
fxg5 {[%clk 0:00:11.6]} 33... Ra3 {[%clk 0:00:10]} 34. Kg2 {[%clk 0:00:08.2]}
34... a5 {[%clk 0:00:10.5]} 35. h4 {[%clk 0:00:07.9]} 35... a4 {[%clk
0:00:10.8]} 36. h5 {[%clk 0:00:06.8]} 36... b3 {[%clk 0:00:08.9]} 37. axb3
{[%clk 0:00:07.7]} 37... axb3 {[%clk 0:00:09.2]} 38. Rd8+ {[%clk 0:00:06.3]}
38... Ke7 {[%clk 0:00:06.4]} 39. Rh8 {[%clk 0:00:06.5]} 39... Ra5 {[%clk
0:00:02.4]} 40. Rxh7+ {[%clk 0:00:06.4]} 40... Kd6 {[%clk 0:00:02.9]} 41. g6
{[%clk 0:00:03]} 41... b2 {[%clk 0:00:02.2]} 42. Rb7 {[%clk 0:00:03.5]} 42...
Rxh5 {[%clk 0:00:02.8]} 43. Rxb2 {[%clk 0:00:02.4]} 43... Rg5 {[%clk 0:00:03.3]}
44. Kh3 {[%clk 0:00:02.9]} 44... Rxg6 {[%clk 0:00:03]} 45. Kh4 {[%clk
0:00:03.5]} 45... Rg8 {[%clk 0:00:02.9]} 46. g4 {[%clk 0:00:03.8]} 46... e5
{[%clk 0:00:03.6]} 47. g5 {[%clk 0:00:03.3]} 47... Kd5 {[%clk 0:00:02.9]} 48.
Kg4 {[%clk 0:00:03.7]} 48... e4 {[%clk 0:00:02.4]} 49. Rb7 {[%clk 0:00:02.1]}
49... Kd4 {[%clk 0:00:01.7]} 50. Rd7+ {[%clk 0:00:02.1]} 50... Ke5 {[%clk
0:00:02]} 51. Re7+ {[%clk 0:00:02.4]} 51... Kd4 {[%clk 0:00:02.4]} 52. Kh4
{[%clk 0:00:02.7]} 52... e3 {[%clk 0:00:02.9]} 53. Kg4 {[%clk 0:00:03.3]} 53...
Kd3 {[%clk 0:00:03.5]} 54. Rd7+ {[%clk 0:00:03.1]} 54... Ke4 {[%clk 0:00:03.6]}
55. Kg3 {[%clk 0:00:02.4]} 55... Rxg5+ {[%clk 0:00:03.2]} 56. Kh3 {[%clk
0:00:03.1]} 56... Rg8 {[%clk 0:00:03.6]} 57. Re7+ {[%clk 0:00:03.4]} 57... Kf3
{[%clk 0:00:04.2]} 58. Rf7+ {[%clk 0:00:03.7]} 58... Ke2 {[%clk 0:00:04.8]} 59.
Kh2 {[%clk 0:00:04.4]} 59... Kd2 {[%clk 0:00:04.2]} 60. Rd7+ {[%clk 0:00:04.6]}
60... Ke1 {[%clk 0:00:04.7]} 61. Re7 {[%clk 0:00:04]} 61... e2 {[%clk
0:00:05.3]} 62. Re5 {[%clk 0:00:04.3]} 62... Rg6 {[%clk 0:00:04.7]} 63. Kh3
{[%clk 0:00:03.8]} 63... Kf2 {[%clk 0:00:04.2]} 64. Rf5+ {[%clk 0:00:04.1]}
64... Ke3 {[%clk 0:00:04.6]} 65. Re5+ {[%clk 0:00:04.6]} 65... Kf3 {[%clk
0:00:03.9]} 66. Rf5+ {[%clk 0:00:03.9]} 66... Ke4 {[%clk 0:00:04.3]} 67. Rf8
{[%clk 0:00:04.5]} 67... Re6 {[%clk 0:00:04.6]} 68. Kg4 {[%clk 0:00:03.3]} 68...
e1=Q {[%clk 0:00:04.4]} 69. Rf4+ {[%clk 0:00:04.2]} 69... Kd5 {[%clk 0:00:04.8]}
70. Rf1 {[%clk 0:00:04.1]} 70... Qxf1 {[%clk 0:00:04.6]} 0-1